[Event "Balkan Youth Online-ch 2020"]
[Site "Online"]
[Date "2020.10.31"]
[Round "4.64"]
[White "Arshinkova, Boryana"]
[Black "Christodoulou, Georgia"]
[Result "0-1"]
[ECO "C05"]
[WhiteElo "1329"]
[BlackElo "1373"]
[Annotator "NA RC"]
[PlyCount "90"]
[EventDate "2020.10.31"]
[EventType "swiss"]
[SourceTitle "playchess.com"]
[Source "ChessBase"]
[SourceQuality "1"]
[TimeControl "1500+5"]

1. e4 {[%emt 0:00:00]} e6 {[%emt 0:00:00]} 2. d4 {[%emt 0:00:00]} d5 {[%emt 0:00:00]} 3. Nd2 {[%emt 0:00:00]} Nf6 {[%emt 0:00:00]} 4. e5 {[%emt 0:00:06]} Nfd7 {[%emt 0:00:00]} 5. Ngf3 {[%emt 0:00:09]} c5 {[%emt 0:00:00]} 6. c3 {[%emt 0:00:00]} Qb6 {[%emt 0:00:00]} 7. Be2 {[%emt 0:00:18]} Nc6 {[%emt 0:00:00]} 8. Nb3 {[%emt 0:00:24]} cxd4 {[%emt 0:00:00]} 9. cxd4 {[%emt 0:00:02]} Bb4+ {[%emt 0:00:00]} 10. Bd2 {[%emt 0:00:00]} Bxd2+ {[%emt 0:00:11]} 11. Qxd2 {[%emt 0:00:00]} Qb4 {[%emt 0:00:02]} 12. Qxb4 {[%emt 0:00:26]} Nxb4 {[%emt 0:00:00]} 13. O-O {[%emt 0:00:00]} O-O {[%emt 0:00:06]} 14. a3 {[%emt 0:00:00]} Nc6 {[%emt 0:00:00]} 15. Rac1 {[%emt 0:00:00]} Nb6 {[%emt 0:00:00]} 16. Bb5 {[%emt 0:00:53]} Ne7 {[%emt 0:03:26]} 17. Na5 {[%emt 0:01:17]} a6 {[%emt 0:00:37]} 18. Ba4 {[%emt 0:00:06]} Nxa4 {[%emt 0:01:09]} 19. b3 {[%emt 0:00:12]} Nb6 {[%emt 0:00:08]} 20. Rc7 {[%emt 0:00:24]} Ng6 {[%emt 0:01:04]} 21. Nxb7 {[%emt 0:00:00]} Bxb7 {[%emt 0:00:00]} 22. Rxb7 {[%emt 0:00:00]} Rfb8 {[%emt 0:00:08]} 23. Rc7 {[%emt 0:00:05]} Nc8 {[%emt 0:00:27]} 24. b4 {[%emt 0:00:00]} Nce7 {[%emt 0:00:03]} 25. Rfc1 {[%emt 0:00:01]} Rc8 {[%emt 0:00:00]} 26. R7c5 {[%emt 0:00:17]} Nf4 {[%emt 0:00:00]} 27. Rd1 {[%emt 0:00:38]} Ne2+ {[%emt 0:02:14]} 28. Kf1 {[%emt 0:00:00]} Nc3 {[%emt 0:00:06]} 29. Ra1 {[%emt 0:01:13]} Ne4 {[%emt 0:00:19]} 30. Rcc1 {[%emt 0:00:20]} Rxc1+ {[%emt 0:00:08]} 31. Rxc1 {[%emt 0:00:00]} Rc8 {[%emt 0:00:03]} 32. Ra1 {[%emt 0:00:07]} Rc2 {[%emt 0:00:09]} 33. Kg1 {[%emt 0:00:29]} Nxf2 {[%emt 0:00:14]} 34. Ne1 {[%emt 0:00:13]} Rb2 {[%emt 0:00:17]} 35. Rc1 {[%emt 0:00:04]} Ne4 {[%emt 0:00:31]} 36. Rc7 {[%emt 0:00:02]} Kf8 {[%emt 0:00:17]} 37. Ra7 {[%emt 0:00:13]} g6 {[%emt 0:00:16]} 38. Rxa6 {[%emt 0:00:00]} Nf5 {[%emt 0:00:20]} 39. Rb6 {[%emt 0:00:35]} Ne3 {[%emt 0:00:36]} 40. h3 {[%emt 0:00:27]} Rb1 {[%emt 0:00:08]} 41. Kh2 {[%emt 0:00:00]} Rxe1 {[%emt 0:00:02]} 42. a4 {[%emt 0:00:01]} Re2 {[%emt 0:00:04]} 43. Rb8+ {[%emt 0:00:12]} Kg7 {[%emt 0:00:00]} 44. a5 {[%emt 0:00:00]} Rxg2+ {[%emt 0:00:00]} 45. Kh1 {[%emt 0:00:00]} Ng3# {[%emt 0:00:00]} 0-1

[Event "Balkan Youth Online-ch 2020"]
[Site "Online"]
[Date "2020.10.31"]
[Round "4.66"]
[White "Karadas, Hena"]
[Black "Gkoutzouki, Aikaterini Argyro"]
[Result "1-0"]
[ECO "B33"]
[WhiteElo "1191"]
[BlackElo "1380"]
[Annotator "NA RC"]
[PlyCount "77"]
[EventDate "2020.10.31"]
[EventType "swiss"]
[SourceTitle "playchess.com"]
[Source "ChessBase"]
[SourceQuality "1"]
[TimeControl "1500+5"]

1. e4 {[%emt 0:00:00]} c5 {[%emt 0:00:00]} 2. Nf3 {[%emt 0:00:00]} Nc6 {[%emt 0:00:00]} 3. d4 {[%emt 0:00:00]} cxd4 {[%emt 0:00:00]} 4. Nxd4 {[%emt 0:00:00]} e5 {[%emt 0:00:00]} 5. Nf3 {[%emt 0:00:00]} Nf6 {[%emt 0:00:00]} 6. Nc3 {[%emt 0:00:00]} Bb4 {[%emt 0:00:00]} 7. Bd3 {[%emt 0:00:00]} O-O {[%emt 0:00:00]} 8. Bd2 {[%emt 0:00:00]} Re8 {[%emt 0:00:08]} 9. O-O {[%emt 0:00:00]} h6 {[%emt 0:00:11]} 10. Re1 {[%emt 0:00:03]} d6 {[%emt 0:00:00]} 11. a3 {[%emt 0:00:01]} Ba5 {[%emt 0:00:00]} 12. b4 {[%emt 0:00:01]} Bc7 {[%emt 0:00:00]} 13. Nd5 {[%emt 0:00:05]} Bg4 {[%emt 0:00:25]} 14. h3 {[%emt 0:00:59]} Bh5 {[%emt 0:00:10]} 15. Bc3 {[%emt 0:01:41]} Nxd5 {[%emt 0:00:47]} 16. exd5 {[%emt 0:00:02]} Ne7 {[%emt 0:00:00]} 17. Be2 {[%emt 0:00:06]} Bb6 {[%emt 0:00:16]} 18. Bb2 {[%emt 0:00:25]} a5 {[%emt 0:00:23]} 19. c4 {[%emt 0:01:00]} axb4 {[%emt 0:00:33]} 20. axb4 {[%emt 0:00:00]} Rxa1 {[%emt 0:00:00]} 21. Bxa1 {[%emt 0:00:02]} Ba7 {[%emt 0:00:14]} 22. Nd2 {[%emt 0:00:48]} Qb6 {[%emt 0:00:18]} 23. Bxh5 {[%emt 0:00:35]} Qxf2+ {[%emt 0:00:00]} 24. Kh1 {[%emt 0:00:02]} Nf5 {[%emt 0:00:00]} 25. Ne4 {[%emt 0:00:25]} Qa2 {[%emt 0:00:34]} 26. Qf3 {[%emt 0:00:39]} g6 {[%emt 0:01:14]} 27. Nf6+ {[%emt 0:00:33]} Kh8 {[%emt 0:00:02]} 28. Nxe8 {[%emt 0:00:00]} Bf2 {[%emt 0:00:00]} 29. Rd1 {[%emt 0:01:33]} Ng3+ {[%emt 0:01:33]} 30. Kh2 {[%emt 0:00:03]} Nxh5 {[%emt 0:00:00]} 31. Qxf7 {[%emt 0:00:14]} Bg3+ {[%emt 0:00:13]} 32. Kh1 {[%emt 0:00:00]} Bh4 {[%emt 0:00:00]} 33. Qxg6 {[%emt 0:00:18]} Qe2 {[%emt 0:00:01]} 34. Qxh6+ {[%emt 0:00:30]} Kg8 {[%emt 0:00:00]} 35. Qg6+ {[%emt 0:01:12]} Kh8 {[%emt 0:00:00]} 36. Rc1 {[%emt 0:00:31]} Ng3+ {[%emt 0:11:03]} 37. Kh2 {[%emt 0:00:52]} Nh5 {[%emt 0:00:20]} 38. Nxd6 {[%emt 0:00:23]} Bg3+ {[%emt 0:00:45]} 39. Kh1 {[%emt 0:00:02]} 1-0

[Event "Balkan Youth Online-ch 2020"]
[Site "Online"]
[Date "2020.10.31"]
[Round "4.68"]
[White "Davitkova, Jovana"]
[Black "Pandelescu, Maria-Catalina"]
[Result "0-1"]
[ECO "B01"]
[WhiteElo "1227"]
[BlackElo "1242"]
[Annotator "NA RC"]
[PlyCount "104"]
[EventDate "2020.10.31"]
[EventType "swiss"]
[SourceTitle "playchess.com"]
[Source "ChessBase"]
[SourceQuality "1"]
[TimeControl "1500+5"]

1. e4 {[%emt 0:00:00]} d5 {[%emt 0:00:00]} 2. exd5 {[%emt 0:00:00]} Qxd5 {[%emt 0:00:00]} 3. Nc3 {[%emt 0:00:00]} Qa5 {[%emt 0:00:02]} 4. d4 {[%emt 0:00:13]} Nf6 {[%emt 0:00:11]} 5. Bd2 {[%emt 0:00:15]} c6 {[%emt 0:00:13]} 6. Nf3 {[%emt 0:00:16]} Bf5 {[%emt 0:00:15]} 7. Be2 {[%emt 0:00:27]} Qc7 {[%emt 0:00:24]} 8. Nh4 {[%emt 0:00:30]} Bg6 {[%emt 0:00:13]} 9. Nxg6 {[%emt 0:00:03]} hxg6 {[%emt 0:00:00]} 10. h3 {[%emt 0:00:00]} e6 {[%emt 0:00:00]} 11. Bf3 {[%emt 0:00:11]} Bd6 {[%emt 0:00:19]} 12. Ne4 {[%emt 0:00:33]} Nxe4 {[%emt 0:00:21]} 13. Bxe4 {[%emt 0:00:00]} Nd7 {[%emt 0:00:00]} 14. c3 {[%emt 0:00:20]} Nf6 {[%emt 0:00:39]} 15. Bf3 {[%emt 0:00:15]} O-O-O {[%emt 0:00:28]} 16. Qc2 {[%emt 0:00:12]} e5 {[%emt 0:01:46]} 17. dxe5 {[%emt 0:00:30]} Bxe5 {[%emt 0:00:00]} 18. O-O-O {[%emt 0:00:00]} Kb8 {[%emt 0:00:42]} 19. Bg5 {[%emt 0:00:19]} Bf4+ {[%emt 0:00:42]} 20. Bxf4 {[%emt 0:00:00]} Qxf4+ {[%emt 0:00:00]} 21. Kb1 {[%emt 0:00:00]} Nd7 {[%emt 0:01:05]} 22. Qe4 {[%emt 0:00:44]} Qf6 {[%emt 0:00:35]} 23. Qc2 {[%emt 0:01:22]} Ne5 {[%emt 0:01:22]} 24. Be4 {[%emt 0:00:25]} Rhe8 {[%emt 0:00:46]} 25. Rxd8+ {[%emt 0:00:06]} Rxd8 {[%emt 0:00:00]} 26. f3 {[%emt 0:00:37]} Qd6 {[%emt 0:00:42]} 27. Kc1 {[%emt 0:00:33]} f5 {[%emt 0:00:58]} 28. f4 {[%emt 0:00:54]} Nc4 {[%emt 0:00:40]} 29. Bf3 {[%emt 0:00:49]} Qxf4+ {[%emt 0:00:02]} 30. Kb1 {[%emt 0:00:26]} Nd2+ {[%emt 0:00:00]} 31. Ka1 {[%emt 0:00:18]} Nxf3 {[%emt 0:00:00]} 32. gxf3 {[%emt 0:00:15]} Qxf3 {[%emt 0:00:00]} 33. Qh2+ {[%emt 0:00:54]} f4 {[%emt 0:00:13]} 34. a3 {[%emt 0:00:08]} Rd1+ {[%emt 0:00:35]} 35. Rxd1 {[%emt 0:00:16]} Qxd1+ {[%emt 0:00:00]} 36. Ka2 {[%emt 0:00:00]} Qd5+ {[%emt 0:00:15]} 37. Kb1 {[%emt 0:00:10]} Qd3+ {[%emt 0:00:05]} 38. Ka2 {[%emt 0:00:01]} Qg3 {[%emt 0:00:00]} 39. Qc2 {[%emt 0:00:32]} f3 {[%emt 0:00:05]} 40. Qe4 {[%emt 0:00:31]} a6 {[%emt 0:00:38]} 41. Qe8+ {[%emt 0:00:22]} Ka7 {[%emt 0:00:05]} 42. Qe3+ {[%emt 0:00:00]} Ka8 {[%emt 0:00:09]} 43. Qe8+ {[%emt 0:00:29]} Qb8 {[%emt 0:00:07]} 44. Qxg6 {[%emt 0:00:07]} Qf8 {[%emt 0:00:02]} 45. Qg1 {[%emt 0:00:26]} f2 {[%emt 0:00:09]} 46. Qf1 {[%emt 0:00:00]} Qf3 {[%emt 0:00:24]} 47. c4 {[%emt 0:00:52]} Qe3 {[%emt 0:00:39]} 48. Qg2 {[%emt 0:00:18]} Qe2 {[%emt 0:00:10]} 49. Qg5 {[%emt 0:00:14]} Qxc4+ {[%emt 0:00:10]} 50. b3 {[%emt 0:00:10]} Qc2+ {[%emt 0:00:02]} 51. Ka1 {[%emt 0:00:00]} f1=Q+ {[%emt 0:00:00]} 52. Qc1 {[%emt 0:00:00]} Qfxc1# {[%emt 0:00:00]} 0-1

[Event "Balkan Youth Online-ch 2020"]
[Site "Online"]
[Date "2020.10.31"]
[Round "4.71"]
[White "Vaupot, Eliza"]
[Black "Zhezhovska, Monika"]
[Result "1/2-1/2"]
[ECO "C30"]
[WhiteElo "1198"]
[BlackElo "1108"]
[Annotator "NA RC"]
[PlyCount "108"]
[EventDate "2020.10.31"]
[EventType "swiss"]
[SourceTitle "playchess.com"]
[Source "ChessBase"]
[SourceQuality "1"]
[TimeControl "1500+5"]

1. e4 {[%emt 0:00:00]} e5 {[%emt 0:00:04]} 2. Nc3 {[%emt 0:00:00]} Nf6 {[%emt 0:00:00]} 3. f4 {[%emt 0:00:00]} d6 {[%emt 0:00:15]} 4. Nf3 {[%emt 0:00:07]} Nc6 {[%emt 0:00:00]} 5. Bb5 {[%emt 0:00:17]} Qe7 {[%emt 0:00:06]} 6. O-O {[%emt 0:00:31]} Bd7 {[%emt 0:00:01]} 7. d3 {[%emt 0:02:42]} O-O-O {[%emt 0:00:08]} 8. Be3 {[%emt 0:00:29]} a6 {[%emt 0:00:03]} 9. Bc4 {[%emt 0:00:11]} Ng4 {[%emt 0:00:00]} 10. Bd2 {[%emt 0:01:22]} f5 {[%emt 0:00:21]} 11. Ng5 {[%emt 0:01:25]} Nh6 {[%emt 0:00:47]} 12. a3 {[%emt 0:04:46]} fxe4 {[%emt 0:00:13]} 13. dxe4 {[%emt 0:00:34]} exf4 {[%emt 0:00:38]} 14. Bxf4 {[%emt 0:00:19]} Ne5 {[%emt 0:00:16]} 15. Bxe5 {[%emt 0:04:08]} Qxe5 {[%emt 0:00:01]} 16. Qd5 {[%emt 0:01:23]} Qxd5 {[%emt 0:00:12]} 17. exd5 {[%emt 0:00:14]} Be7 {[%emt 0:00:12]} 18. Nf7 {[%emt 0:00:31]} Nxf7 {[%emt 0:00:01]} 19. Rxf7 {[%emt 0:00:00]} Bf6 {[%emt 0:00:00]} 20. Re1 {[%emt 0:00:42]} Be8 {[%emt 0:00:00]} 21. Rxf6 {[%emt 0:01:26]} gxf6 {[%emt 0:00:00]} 22. Bd3 {[%emt 0:00:35]} Bg6 {[%emt 0:00:00]} 23. Bxg6 {[%emt 0:00:09]} hxg6 {[%emt 0:00:00]} 24. Re6 {[%emt 0:00:00]} Rhf8 {[%emt 0:00:00]} 25. Ne4 {[%emt 0:01:34]} f5 {[%emt 0:00:23]} 26. Ng5 {[%emt 0:00:03]} Rg8 {[%emt 0:00:02]} 27. Kf2 {[%emt 0:00:00]} Rde8 {[%emt 0:00:01]} 28. Ke3 {[%emt 0:01:23]} Rxe6+ {[%emt 0:00:03]} 29. dxe6 {[%emt 0:00:00]} Kd8 {[%emt 0:00:03]} 30. Kd4 {[%emt 0:00:00]} Ke7 {[%emt 0:00:00]} 31. Kd5 {[%emt 0:00:07]} c6+ {[%emt 0:00:01]} 32. Kd4 {[%emt 0:00:05]} Kf6 {[%emt 0:00:15]} 33. h4 {[%emt 0:00:00]} Rh8 {[%emt 0:00:00]} 34. g3 {[%emt 0:00:00]} f4 {[%emt 0:00:00]} 35. gxf4 {[%emt 0:00:16]} Rxh4 {[%emt 0:00:02]} 36. Ke4 {[%emt 0:00:00]} Rh2 {[%emt 0:00:10]} 37. Kd3 {[%emt 0:00:09]} Rf2 {[%emt 0:00:13]} 38. Ne4+ {[%emt 0:00:01]} Kxe6 {[%emt 0:00:01]} 39. Nxf2 {[%emt 0:00:00]} Kf5 {[%emt 0:00:00]} 40. Ke3 {[%emt 0:00:00]} d5 {[%emt 0:00:00]} 41. c3 {[%emt 0:00:00]} c5 {[%emt 0:00:00]} 42. Nd3 {[%emt 0:00:00]} b6 {[%emt 0:00:00]} 43. Ne5 {[%emt 0:00:00]} g5 {[%emt 0:00:13]} 44. Nd7 {[%emt 0:00:31]} gxf4+ {[%emt 0:00:00]} 45. Kf3 {[%emt 0:00:00]} d4 {[%emt 0:00:00]} 46. Nxb6 {[%emt 0:00:08]} d3 {[%emt 0:00:00]} 47. Nc4 {[%emt 0:00:00]} a5 {[%emt 0:00:00]} 48. b4 {[%emt 0:00:45]} cxb4 {[%emt 0:00:00]} 49. cxb4 {[%emt 0:00:03]} axb4 {[%emt 0:00:03]} 50. axb4 {[%emt 0:00:00]} Ke6 {[%emt 0:00:00]} 51. Kxf4 {[%emt 0:00:17]} Kd5 {[%emt 0:00:00]} 52. Nd2 {[%emt 0:00:07]} Kc6 {[%emt 0:00:00]} 53. Ke3 {[%emt 0:00:50]} Kb5 {[%emt 0:00:00]} 54. Kxd3 {[%emt 0:00:00]} Kxb4 {[%emt 0:00:00]} 1/2-1/2

[Event "Balkan Youth Online-ch 2020"]
[Site "Online"]
[Date "2020.10.31"]
[Round "4.72"]
[White "Shuqja, Klean"]
[Black "Mihelic, Vesna"]
[Result "0-1"]
[ECO "A01"]
[WhiteElo "1838"]
[BlackElo "1872"]
[Annotator "NA RC"]
[PlyCount "96"]
[EventDate "2020.10.31"]
[EventType "swiss"]
[SourceTitle "playchess.com"]
[Source "ChessBase"]
[SourceQuality "1"]
[TimeControl "1500+5"]

1. b3 {[%emt 0:00:00]} e5 {[%emt 0:00:00]} 2. Bb2 {[%emt 0:00:00]} Nc6 {[%emt 0:00:00]} 3. e3 {[%emt 0:00:00]} Nf6 {[%emt 0:00:00]} 4. Bb5 {[%emt 0:00:00]} d6 {[%emt 0:00:24]} 5. Ne2 {[%emt 0:00:02]} Bd7 {[%emt 0:00:00]} 6. O-O {[%emt 0:00:22]} g6 {[%emt 0:00:01]} 7. d4 {[%emt 0:00:01]} exd4 {[%emt 0:00:03]} 8. Nxd4 {[%emt 0:00:00]} Nxd4 {[%emt 0:00:20]} 9. Bxd7+ {[%emt 0:00:01]} Qxd7 {[%emt 0:00:00]} 10. Bxd4 {[%emt 0:00:29]} Bg7 {[%emt 0:00:01]} 11. Qf3 {[%emt 0:00:58]} Qc6 {[%emt 0:02:38]} 12. Qxc6+ {[%emt 0:01:18]} bxc6 {[%emt 0:00:00]} 13. Nd2 {[%emt 0:00:00]} O-O {[%emt 0:00:00]} 14. c4 {[%emt 0:00:24]} a5 {[%emt 0:00:24]} 15. Rab1 {[%emt 0:00:21]} Nd7 {[%emt 0:00:53]} 16. Nf3 {[%emt 0:00:44]} c5 {[%emt 0:01:11]} 17. Bxg7 {[%emt 0:00:25]} Kxg7 {[%emt 0:00:00]} 18. Rfd1 {[%emt 0:01:17]} Nf6 {[%emt 0:00:35]} 19. Rd3 {[%emt 0:01:04]} Rfb8 {[%emt 0:00:48]} 20. Nd2 {[%emt 0:02:27]} a4 {[%emt 0:00:43]} 21. a3 {[%emt 0:02:10]} axb3 {[%emt 0:00:29]} 22. Rdxb3 {[%emt 0:00:05]} Rxb3 {[%emt 0:00:02]} 23. Rxb3 {[%emt 0:00:00]} Nd7 {[%emt 0:00:33]} 24. Kf1 {[%emt 0:00:47]} Ra4 {[%emt 0:00:50]} 25. Rb7 {[%emt 0:03:47]} Rxa3 {[%emt 0:00:36]} 26. Rxc7 {[%emt 0:00:00]} Ne5 {[%emt 0:00:00]} 27. Ne4 {[%emt 0:01:29]} Nxc4 {[%emt 0:00:41]} 28. Ng5 {[%emt 0:00:40]} Ra1+ {[%emt 0:01:36]} 29. Ke2 {[%emt 0:00:00]} Ra2+ {[%emt 0:00:00]} 30. Kf1 {[%emt 0:00:58]} Ne5 {[%emt 0:01:29]} 31. f4 {[%emt 0:00:38]} Ng4 {[%emt 0:00:07]} 32. Rxf7+ {[%emt 0:00:29]} Kg8 {[%emt 0:00:00]} 33. Re7 {[%emt 0:00:51]} c4 {[%emt 0:00:32]} 34. Re8+ {[%emt 0:05:32]} Kg7 {[%emt 0:00:00]} 35. Re7+ {[%emt 0:00:03]} Kf8 {[%emt 0:00:14]} 36. Rc7 {[%emt 0:00:22]} Nxe3+ {[%emt 0:00:00]} 37. Ke1 {[%emt 0:00:00]} Nxg2+ {[%emt 0:00:00]} 38. Kf1 {[%emt 0:00:01]} Ne3+ {[%emt 0:00:00]} 39. Kg1 {[%emt 0:00:18]} d5 {[%emt 0:01:10]} 40. Nxh7+ {[%emt 0:00:05]} Ke8 {[%emt 0:00:05]} 41. Nf6+ {[%emt 0:00:00]} Kd8 {[%emt 0:00:03]} 42. Rc5 {[%emt 0:00:12]} Rd2 {[%emt 0:00:05]} 43. h4 {[%emt 0:00:04]} Ke7 {[%emt 0:00:05]} 44. Ng8+ {[%emt 0:00:04]} Kf7 {[%emt 0:00:00]} 45. Nh6+ {[%emt 0:00:00]} Kg7 {[%emt 0:00:00]} 46. f5 {[%emt 0:00:11]} Kxh6 {[%emt 0:00:00]} 47. f6 {[%emt 0:00:00]} Rg2+ {[%emt 0:00:00]} 48. Kh1 {[%emt 0:00:00]} Rf2 {[%emt 0:00:00]} 0-1

[Event "Balkan Youth Online-ch 2020"]
[Site "Online"]
[Date "2020.10.31"]
[Round "4.73"]
[White "Kipik, Feyza"]
[Black "Spiridon, Anisia"]
[Result "1-0"]
[ECO "C11"]
[WhiteElo "1592"]
[BlackElo "1551"]
[Annotator "NA RC"]
[PlyCount "57"]
[EventDate "2020.10.31"]
[EventType "swiss"]
[SourceTitle "playchess.com"]
[Source "ChessBase"]
[SourceQuality "1"]
[TimeControl "1500+5"]

1. e4 {[%emt 0:00:00]} e6 {[%emt 0:00:00]} 2. d4 {[%emt 0:00:00]} d5 {[%emt 0:00:00]} 3. Nc3 {[%emt 0:00:00]} Nf6 {[%emt 0:00:00]} 4. e5 {[%emt 0:00:00]} Nfd7 {[%emt 0:00:26]} 5. f4 {[%emt 0:00:00]} c5 {[%emt 0:00:00]} 6. Nf3 {[%emt 0:00:00]} a6 {[%emt 0:00:08]} 7. Be3 {[%emt 0:00:16]} b5 {[%emt 0:02:21]} 8. Qd2 {[%emt 0:04:06]} cxd4 {[%emt 0:01:45]} 9. Nxd4 {[%emt 0:00:20]} Bb7 {[%emt 0:00:37]} 10. Be2 {[%emt 0:01:38]} Nc5 {[%emt 0:01:52]} 11. O-O {[%emt 0:01:27]} b4 {[%emt 0:00:31]} 12. Nd1 {[%emt 0:00:38]} Ne4 {[%emt 0:00:12]} 13. Qe1 {[%emt 0:01:22]} Bc5 {[%emt 0:01:16]} 14. f5 {[%emt 0:03:00]} Qb6 {[%emt 0:07:01]} 15. c3 {[%emt 0:02:47]} bxc3 {[%emt 0:00:36]} 16. bxc3 {[%emt 0:00:00]} O-O {[%emt 0:02:46]} 17. f6 {[%emt 0:01:58]} g5 {[%emt 0:02:11]} 18. Bd3 {[%emt 0:03:24]} Kh8 {[%emt 0:01:18]} 19. Bxg5 {[%emt 0:03:31]} Bxd4+ {[%emt 0:01:09]} 20. Kh1 {[%emt 0:00:00]} Nxg5 {[%emt 0:01:11]} 21. Qh4 {[%emt 0:00:07]} Be3 {[%emt 0:00:21]} 22. Rf3 {[%emt 0:00:53]} d4 {[%emt 0:00:46]} 23. Rg3 {[%emt 0:00:56]} Be4 {[%emt 0:00:06]} 24. Bxe4 {[%emt 0:00:08]} Nxe4 {[%emt 0:00:00]} 25. Qxe4 {[%emt 0:00:00]} Nd7 {[%emt 0:00:11]} 26. Rh3 {[%emt 0:00:09]} h6 {[%emt 0:00:11]} 27. Nxe3 {[%emt 0:00:00]} Qb2 {[%emt 0:00:02]} 28. Rxh6+ {[%emt 0:00:00]} Kg8 {[%emt 0:00:00]} 29. Qh7# {[%emt 0:00:00]} 1-0

[Event "Balkan Youth Online-ch 2020"]
[Site "Online"]
[Date "2020.10.31"]
[Round "4.75"]
[White "Tsakona, Maria"]
[Black "Tsekoura, Vaia"]
[Result "1-0"]
[ECO "E18"]
[WhiteElo "1596"]
[BlackElo "1488"]
[Annotator "NA RC"]
[PlyCount "47"]
[EventDate "2020.10.31"]
[EventType "swiss"]
[SourceTitle "playchess.com"]
[Source "ChessBase"]
[SourceQuality "1"]
[TimeControl "1500+5"]

1. Nf3 {[%emt 0:00:00]} Nf6 {[%emt 0:00:10]} 2. c4 {[%emt 0:00:00]} e6 {[%emt 0:00:10]} 3. g3 {[%emt 0:00:00]} b6 {[%emt 0:00:29]} 4. Bg2 {[%emt 0:00:00]} Bb7 {[%emt 0:00:00]} 5. O-O {[%emt 0:00:00]} Be7 {[%emt 0:00:00]} 6. d4 {[%emt 0:00:02]} d5 {[%emt 0:00:00]} 7. Qa4+ {[%emt 0:01:35]} Nbd7 {[%emt 0:01:01]} 8. Ne5 {[%emt 0:00:28]} O-O {[%emt 0:00:38]} 9. Nc3 {[%emt 0:00:04]} Nxe5 {[%emt 0:04:57]} 10. dxe5 {[%emt 0:00:00]} Ng4 {[%emt 0:00:08]} 11. cxd5 {[%emt 0:00:00]} Nxe5 {[%emt 0:00:07]} 12. d6 {[%emt 0:00:00]} Bxg2 {[%emt 0:01:56]} 13. dxe7 {[%emt 0:00:00]} Qxe7 {[%emt 0:00:00]} 14. Kxg2 {[%emt 0:00:00]} c5 {[%emt 0:00:21]} 15. Bf4 {[%emt 0:00:00]} Ng6 {[%emt 0:00:10]} 16. Rfd1 {[%emt 0:00:11]} e5 {[%emt 0:00:10]} 17. Be3 {[%emt 0:00:48]} Qb7+ {[%emt 0:00:19]} 18. f3 {[%emt 0:00:36]} f5 {[%emt 0:00:53]} 19. Rd7 {[%emt 0:00:22]} Qc8 {[%emt 0:01:00]} 20. Rad1 {[%emt 0:00:16]} f4 {[%emt 0:00:28]} 21. Bf2 {[%emt 0:00:04]} a6 {[%emt 0:00:51]} 22. Qb3+ {[%emt 0:00:27]} c4 {[%emt 0:01:35]} 23. Qxb6 {[%emt 0:00:01]} Rb8 {[%emt 0:00:17]} 24. Qa7 {[%emt 0:00:00]} 1-0

[Event "Balkan Youth Online-ch 2020"]
[Site "Online"]
[Date "2020.10.31"]
[Round "4.76"]
[White "Jovanovic, Anja"]
[Black "Mosurovic, Milena"]
[Result "1-0"]
[ECO "B01"]
[WhiteElo "1778"]
[BlackElo "1428"]
[Annotator "NA RC"]
[PlyCount "73"]
[EventDate "2020.10.31"]
[EventType "swiss"]
[SourceTitle "playchess.com"]
[Source "ChessBase"]
[SourceQuality "1"]
[TimeControl "1500+5"]

1. e4 {[%emt 0:00:00]} d5 {[%emt 0:00:00]} 2. exd5 {[%emt 0:00:00]} Qxd5 {[%emt 0:00:00]} 3. Nc3 {[%emt 0:00:00]} Qd8 {[%emt 0:00:00]} 4. d4 {[%emt 0:00:00]} Nf6 {[%emt 0:00:00]} 5. Nf3 {[%emt 0:00:00]} Bg4 {[%emt 0:00:00]} 6. Be2 {[%emt 0:00:00]} e6 {[%emt 0:00:00]} 7. O-O {[%emt 0:00:00]} Bd6 {[%emt 0:00:00]} 8. h3 {[%emt 0:00:00]} Bh5 {[%emt 0:00:00]} 9. Bg5 {[%emt 0:00:00]} Nbd7 {[%emt 0:00:00]} 10. Qd2 {[%emt 0:00:00]} O-O {[%emt 0:00:00]} 11. Ne5 {[%emt 0:01:57]} Bxe2 {[%emt 0:00:00]} 12. Qxe2 {[%emt 0:00:00]} Be7 {[%emt 0:00:00]} 13. Rad1 {[%emt 0:00:33]} c6 {[%emt 0:00:09]} 14. Rd3 {[%emt 0:01:10]} Nd5 {[%emt 0:00:14]} 15. Nxd5 {[%emt 0:00:34]} cxd5 {[%emt 0:00:48]} 16. Bxe7 {[%emt 0:00:13]} Qxe7 {[%emt 0:00:00]} 17. Rg3 {[%emt 0:00:12]} Nf6 {[%emt 0:00:25]} 18. c3 {[%emt 0:03:23]} Rac8 {[%emt 0:01:32]} 19. Ng4 {[%emt 0:03:52]} Rfe8 {[%emt 0:02:04]} 20. Re1 {[%emt 0:00:31]} Ne4 {[%emt 0:00:51]} 21. Rf3 {[%emt 0:00:37]} h5 {[%emt 0:03:08]} 22. Ne5 {[%emt 0:00:08]} f6 {[%emt 0:01:40]} 23. Nd3 {[%emt 0:00:07]} Rc6 {[%emt 0:00:51]} 24. Rf4 {[%emt 0:00:20]} e5 {[%emt 0:00:21]} 25. dxe5 {[%emt 0:00:01]} fxe5 {[%emt 0:00:00]} 26. Rf5 {[%emt 0:00:00]} Re6 {[%emt 0:04:36]} 27. Qxh5 {[%emt 0:02:03]} Rh6 {[%emt 0:00:31]} 28. Qe2 {[%emt 0:00:34]} Qd6 {[%emt 0:01:41]} 29. Nb4 {[%emt 0:01:41]} Qg6 {[%emt 0:01:06]} 30. Qg4 {[%emt 0:00:21]} Qb6 {[%emt 0:00:23]} 31. Nxd5 {[%emt 0:00:32]} Nxf2 {[%emt 0:01:55]} 32. Rxf2 {[%emt 0:00:38]} Qc5 {[%emt 0:00:04]} 33. c4 {[%emt 0:01:27]} Rf8 {[%emt 0:00:16]} 34. Ref1 {[%emt 0:00:07]} Ra6 {[%emt 0:00:55]} 35. b4 {[%emt 0:00:04]} Qd6 {[%emt 0:00:38]} 36. Rxf8+ {[%emt 0:00:01]} Qxf8 {[%emt 0:00:00]} 37. Rxf8+ {[%emt 0:00:01]} 1-0